{"text_format":"3","workbook":"xlsx","n_sheets":1,"sheets":["Faktura"],"not_rendered":{"defined_names":6},"read":"whole","date_system":"1900"}

{"sheet":"Faktura","index":0,"n_rows":26,"n_cols":7,"rows_kept":26,"merged":[[0,1,0,2],[1,1,1,2],[1,3,1,4],[1,5,1,6],[2,1,2,2],[2,3,2,4],[2,5,2,6],[3,1,3,2],[3,3,3,4],[4,1,4,2],[4,3,4,4],[5,3,5,4],[24,1,24,4],[25,1,25,4]]}
[null,"Naziv preduzeća"]
[null,"Ulica i broj",null,"T: Broj telefona",null,"Adresa e-pošte"]
[null,"Grad, država i poštanski broj",null,"F: Broj faksa",null,"Veb sajt"]
[null,"Primalac fakture:",null,{"$f":"\"Telefon:   \"","v":"Telefon:   "},null,"Br. fakture:"]
[null,"Adresa:",null,{"$f":"\"Fax:    \"","v":"Fax:    "},null,"Datum fakture:"]
[{"$nulls":3},{"$f":"\"Adresa e-pošte:   \"","v":"Adresa e-pošte:   "}]
[null,{"$f":"\"Faktura za: \"","v":"Faktura za: "}]
[null,"Br. stavke","Opis","Kol.","Cena po jedinici","Popust","Cena"]
[{"$nulls":6},{"$f":"IFERROR((D9*E9)-F9,\"\")","v":0}]
[{"$nulls":6},0]
[{"$nulls":6},0]
[{"$nulls":6},0]
[{"$nulls":6},0]
[{"$nulls":6},0]
[{"$nulls":6},0]
[{"$nulls":6},0]
[{"$nulls":6},0]
[{"$nulls":6},0]
[{"$nulls":6},0]
[{"$nulls":6},0]
[{"$nulls":5},"Međuvrednost fakture",{"$f":"SUM(JednostavnaFaktura[Cena])","v":0}]
[{"$nulls":5},"Poreska stopa"]
[{"$nulls":5},"Porez na promet",{"$f":"IFERROR(G21*G22,\"\")","v":0}]
[{"$nulls":5},"Drugo"]
[null,{"$f":"\"Neka svi čekovi glase na \"&ime_preduzeća&\".\"","v":"Neka svi čekovi glase na Naziv preduzeća."},{"$nulls":3},"Primljeni depozit"]
[null,"Za <#> dan(a) krajnji je rok plaćanja ukupnog iznosa. Na neizmirene račune se plaća naknada za usluge u iznosu od <#>% mesečno.",{"$nulls":3},"ZBIR",{"$f":"IFERROR((G21+G23+G24)-G25,\"\")","v":0}]